fUST/lending_fUST_20260109
["ID","MTS","AMOUNT","RATE_DAILY","PERIOD"]
[401097173,1767924644783,-151.0,0.00024009,2]
[401097174,1767924644792,-264.224,0.00024009,2]
[401097175,1767924644801,-264.224,0.00024009,2]
[401097176,1767924644810,-264.224,0.00024009,2]
[401097177,1767924644818,-264.224,0.00024009,2]
[401097178,1767924644829,-151.671,0.00024009,2]
[401097179,1767924644842,-151.0,0.00024009,2]
[401097180,1767924644850,-156.632344,0.00024009,2]
[401097181,1767924644859,-465.598169,0.00024009,2]
[401097182,1767924644868,-3684.236752,0.00024009,2]
[401097183,1767924644877,-465.598169,0.00024009,2]
[401097184,1767924644887,-3684.236752,0.00024009,2]
[401097185,1767924644896,-465.598169,0.00024009,2]
[401097186,1767924644905,-3684.236752,0.00024009,2]
[401097187,1767924644914,-465.598166,0.00024009,2]
[401097188,1767924644923,-3684.23676,0.00024009,2]
[401097189,1767924644933,-151.0,0.00024009,2]
[401097190,1767924644943,-626.530657,0.00024009,2]
[401097191,1767924644952,-626.530657,0.00024009,2]
[401097192,1767924644960,-626.530657,0.00024009,2]
[401097193,1767924644971,-626.530663,0.00024009,2]
[401097194,1767924644979,-151.0,0.00024009,2]
[401097195,1767924644988,-151.0,0.00024009,2]
[401097196,1767924644998,-151.0,0.00024009,2]
[401097197,1767924645008,-151.0,0.00024009,2]
[401097198,1767924645017,-151.0,0.00024009,2]
[401097199,1767924645026,-151.0,0.00024009,2]
[401097200,1767924645036,-151.0,0.00024009,2]
[401097201,1767924645046,-151.0,0.00024009,2]
[401097202,1767924645057,-151.0,0.00024009,2]
[401097203,1767924645066,-267.041512,0.00024009,2]
[401097204,1767924645075,-151.0,0.00024009,2]
[401097205,1767924645084,-1369.689816,0.00024009,2]
[401097206,1767924645093,-1369.689816,0.00024009,2]
[401097207,1767924645103,-1369.689816,0.00024009,2]
[401097208,1767924645112,-1914.381293,0.00024009,2]
[401097209,1767924645122,-1369.689813,0.00024009,2]
[401097210,1767924645132,-1914.381293,0.00024009,2]
[401097211,1767924645141,-1914.381293,0.00024009,2]
[401097212,1767924645150,-1914.38129,0.00024009,2]
[401097213,1767924645159,-606.371409,0.00024009,2]
[401097214,1767924645168,-221.941164,0.00024009,2]
[401097215,1767924645178,-606.371409,0.00024009,2]
[401097216,1767924645187,-221.941164,0.00024009,2]
[401097217,1767924645196,-606.371409,0.00024009,2]
[401097218,1767924645205,-221.941164,0.00024009,2]
[401097219,1767924645215,-606.371416,0.00024009,2]
[401097220,1767924645224,-221.941164,0.00024009,2]
[401097221,1767924645234,-156.0,0.00024027,12]
[401097222,1767924645243,-7711.08639258,0.00024027,2]
[401097223,1767924645252,-19349.5,0.000241,2]
[401097224,1767924645261,-420.2,0.00024123,2]
[401097225,1767924645272,-331690.84932753,0.00024142,2]
[401097228,1767924645752,-812.7822298,0.00014095,2]
[401097229,1767924645761,-812.7822298,0.00016578,2]
[401097230,1767924645770,-812.7822298,0.00019061,2]
[401097231,1767924645779,-2593.50936621,0.00019094,2]
[401097232,1767924645790,-514.87694556,0.00019094,2]
[401097246,1767925565723,500.0,0.00030136,120]
[401097247,1767925565950,467.59387838,0.00030136,120]
[401097256,1767925714999,161.49980015,0.0002739,120]
[401097272,1767925831952,-424.50288258,0.00010618,2]
[401097273,1767925831962,-564.4421557,0.00010618,2]
[401097274,1767925831973,-4.5578443,0.00010618,2]
[401097275,1767925831982,-300.0,0.00012499,2]
[401097276,1767925831992,-8128.46577519,0.000125,2]
[401097300,1767925837970,-3521.30514597,0.000125,2]
[401097301,1767925837978,-300.0,0.00012749,2]
[401097302,1767925837987,-300.0,0.00012749,2]
[401097303,1767925837996,-300.0,0.00012749,2]
[401097305,1767925838005,-300.0,0.00012749,2]
[401097306,1767925838015,-300.0,0.00012749,2]
[401097307,1767925838024,-300.0,0.00012749,2]
[401097308,1767925838033,-300.0,0.00012749,2]
[401097309,1767925838042,-300.0,0.00012749,2]
[401097310,1767925838052,-300.0,0.00012749,2]
[401097311,1767925838061,-300.0,0.00012749,2]
[401097312,1767925838070,-300.0,0.00012749,2]
[401097313,1767925838079,-300.0,0.00012749,2]
[401097314,1767925838088,-300.0,0.00012749,2]
[401097315,1767925838101,-300.0,0.00012749,2]
[401097316,1767925838110,-300.0,0.00012749,2]
[401097317,1767925838120,-600.0,0.00013003,2]
[401097318,1767925838130,-500.0,0.00013273,2]
[401097319,1767925838142,-500.0,0.00013273,2]
[401097320,1767925838151,-500.0,0.00013273,2]
[401097321,1767925838161,-500.0,0.00013273,2]
[401097322,1767925838172,-500.0,0.00013273,2]
[401097323,1767925838184,-500.0,0.00013273,2]
[401097324,1767925838194,-274.48440998,0.00013273,2]
[401097325,1767925838203,-4344.47588962,0.00013521,2]
[401097326,1767925838212,-300.0,0.00013673,2]
[401097327,1767925838228,-500.0,0.00013698,2]
[401097328,1767925838238,-500.0,0.00013698,2]
[401097329,1767925838247,-500.0,0.00013698,2]
[401097330,1767925838256,-335.73176522,0.00013698,2]
[401097331,1767925838266,-500.0,0.00013698,2]
[401097332,1767925838276,-500.0,0.00013698,2]
[401097333,1767925838285,-500.0,0.00013698,2]
[401097334,1767925838294,-500.0,0.00013698,2]
[401097335,1767925838304,-500.0,0.00013698,2]
[401097336,1767925838313,-500.0,0.00013698,2]
[401097337,1767925838322,-500.0,0.00013698,2]
[401097338,1767925838332,-500.0,0.00013698,2]
[401097339,1767925838341,-500.0,0.00013699,2]
[401097340,1767925838350,-409.51288327,0.00013699,2]
[401097341,1767925838359,-500.0,0.00013699,2]
[401097342,1767925838369,-500.0,0.00013699,2]
[401097343,1767925838378,-500.0,0.00013699,2]
[401097344,1767925838388,-501.1749439,0.00013699,2]
[401097345,1767925838397,-500.0,0.00013699,2]
[401097346,1767925838407,-500.0,0.00013699,2]
[401097347,1767925838416,-500.0,0.00013699,2]
[401097348,1767925838425,-500.0,0.00013699,2]
[401097349,1767925838435,-501.20007489,0.00013699,2]
[401097350,1767925838444,-500.0,0.00013699,2]
[401097351,1767925838453,-420.0,0.00013714,2]
[401097352,1767925838463,-506.66545063,0.00013821,2]
[401097353,1767925838471,-1000.0,0.00013821,2]
[401097354,1767925838482,-1000.0,0.00013821,2]
[401097355,1767925838492,-1000.0,0.00013821,2]
[401097356,1767925838501,-904.91091865,0.00013821,2]
[401097357,1767925838511,-1000.0,0.00013821,2]
[401097358,1767925838520,-313.77675027,0.00014221,2]
[401097359,1767925838530,-1049.52430624,0.00014247,2]
[401097360,1767925838539,-1000.0,0.00014247,2]
[401097361,1767925838548,-1000.0,0.00014247,2]
[401097362,1767925838557,-1000.0,0.00014247,2]
[401097363,1767925838587,-501.1067294,0.00014247,2]
[401097364,1767925838597,-203.08636443,0.00014247,2]
[401097365,1767925838607,-500.0,0.00014247,2]
[401097366,1767925838616,-1000.0,0.00014247,2]
[401097367,1767925838625,-1000.0,0.00014247,2]
[401097368,1767925838636,-720.0,0.00014303,2]
[401097369,1767925838645,-1500.0,0.00014368,2]
[401097370,1767925838655,-1500.0,0.00014368,2]
[401097371,1767925838664,-1500.0,0.00014368,2]
[401097372,1767925838673,-1500.0,0.00014368,2]
[401097373,1767925838683,-500.0,0.0001455,2]
[401097374,1767925838693,-320.63612999,0.0001455,2]
[401097375,1767925838702,-294.52924968,0.0001455,2]
[401097376,1767925838712,-502.18530352,0.0001455,2]
[401097377,1767925838721,-500.0,0.00014794,2]
[401097378,1767925838731,-1140.00493357,0.00014795,2]
[401097379,1767925838740,-1500.0,0.00014795,2]
[401097380,1767925838749,-1500.0,0.00014795,2]
[401097381,1767925838759,-1500.0,0.00014795,2]
[401097382,1767925838768,-1500.0,0.00014795,2]
[401097383,1767925838778,-454.13631744,0.000149,2]
[401097384,1767925838788,-454.13631744,0.000149,2]
[401097385,1767925838798,-454.13631744,0.000149,2]
[401097386,1767925838807,-2000.0,0.00014916,2]
[401097387,1767925838817,-1500.0,0.00014916,2]
[401097388,1767925838827,-1038.33130816,0.00014916,2]
[401097389,1767925838850,-2000.0,0.00014916,2]
[401097390,1767925838867,-587.0,0.00015048,2]
[401097391,1767925838878,-800.0,0.00015068,2]
[401097392,1767925838888,-323.89160378,0.00015273,2]
[401097393,1767925838898,-2000.0,0.00015342,2]
[401097394,1767925838908,-1575.48401703,0.00015342,2]
[401097395,1767925838918,-2000.0,0.00015342,2]
[401097396,1767925838928,-2000.0,0.00015342,2]
[401097397,1767925838938,-737.90821919,0.00015464,2]
[401097398,1767925838948,-1047.86079383,0.00015464,2]
[401097399,1767925838958,-864.0,0.00015734,2]
[401097400,1767925838967,-2030.47874425,0.0001589,2]
[401097401,1767925838977,-2500.0,0.0001589,2]
[401097402,1767925838987,-2500.0,0.0001589,2]
[401097403,1767925838997,-1600.0,0.00016164,2]
[401097404,1767925839007,-3000.0,0.00016438,2]
[401097405,1767925839016,-3000.0,0.00016438,2]
[401097406,1767925839024,-823.0,0.00016511,2]
[401097407,1767925839034,-151.0,0.000167,2]
[401097408,1767925839044,-1000.0,0.000169,2]
[401097409,1767925839054,-3500.0,0.00016986,2]
[401097410,1767925839063,-678.7569075,0.00016986,2]
[401097411,1767925839074,-206.59548892,0.00016999,2]
[401097412,1767925839084,-583.72308254,0.00016999,2]
[401097413,1767925839099,-583.72308254,0.00016999,2]
[401097414,1767925839110,-583.72308254,0.00016999,2]
[401097415,1767925839119,-583.72308254,0.00016999,2]
[401097416,1767925839129,-583.72308254,0.00016999,2]
[401097417,1767925839140,-583.72308254,0.00016999,2]
[401097418,1767925839150,-583.72308254,0.00016999,2]
[401097419,1767925839159,-583.72308254,0.00016999,2]
[401097420,1767925839170,-583.72308254,0.00016999,2]
[401097421,1767925839180,-583.72308254,0.00016999,2]
[401097422,1767925839190,-583.72308254,0.00016999,2]
[401097423,1767925839200,-583.72308254,0.00016999,2]
[401097424,1767925839208,-583.72308254,0.00016999,2]
[401097425,1767925839217,-583.72308254,0.00016999,2]
[401097426,1767925839227,-583.72308254,0.00016999,2]
[401097427,1767925839236,-583.72308254,0.00016999,2]
[401097428,1767925839245,-583.72308254,0.00016999,2]
[401097429,1767925839254,-620.86909688,0.00016999,2]
[401097430,1767925839263,-620.86909688,0.00016999,2]
[401097431,1767925839272,-620.86909688,0.00016999,2]
[401097432,1767925839282,-620.86909688,0.00016999,2]
[401097433,1767925839292,-620.86909688,0.00016999,2]
[401097434,1767925839300,-620.86909688,0.00016999,2]
[401097435,1767925839310,-620.86909688,0.00016999,2]
[401097436,1767925839319,-620.86909688,0.00016999,2]
[401097437,1767925839328,-620.86909688,0.00016999,2]
[401097438,1767925839337,-620.86909688,0.00016999,2]
[401097439,1767925839347,-50242.71863039,0.00017,2]
[401097440,1767925839356,-151.0,0.00017,2]
[401097441,1767925839369,-156380.57864415,0.0001701,3]
[401097442,1767925839379,-2400.0,0.0001726,2]
[401097443,1767925839388,-373.29879758,0.00017273,2]
[401097444,1767925839397,-1000.0,0.00017307,2]
[401097445,1767925839406,-500.0,0.00017396,2]
[401097446,1767925839416,-151.0,0.000174,2]
[401097447,1767925839426,-4000.0,0.00017534,2]
[401097448,1767925839435,-151.0,0.000178,2]
[401097449,1767925839444,-151.0,0.000179,2]
[401097450,1767925839454,-100000.0,0.0001799,2]
[401097451,1767925839463,-150919.32539666,0.00018,2]
[401097452,1767925839472,-3140.92195732,0.00018,5]
[401097453,1767925839482,-267.55800831,0.0001808,2]
[401097454,1767925839491,-4500.0,0.00018082,2]
[401097455,1767925839500,-1102.0,0.00018116,2]
[401097456,1767925839510,-151.0,0.000183,2]
[401097457,1767925839520,-1101.71202862,0.00018356,2]
[401097458,1767925839529,-5000.0,0.0001863,2]
[401097459,1767925839538,-151.0,0.000188,2]
[401097460,1767925839548,-151.0,0.000188,2]
[401097461,1767925839557,-126040.06671999,0.000189,5]
[401097462,1767925839566,-151.0,0.000189,2]
[401097463,1767925839576,-151.0,0.000189,2]
[401097464,1767925839586,-181.573329,0.000189,2]
[401097465,1767925839595,-151.0,0.000189,2]
[401097466,1767925839604,-356.52765787,0.00019,20]
[401097467,1767925839614,-1000.0,0.00019038,2]
[401097468,1767925839624,-244.0,0.00019038,2]
[401097469,1767925839633,-525.54871248,0.00019178,2]
[401097470,1767925839642,-151.0,0.000192,2]
[401097471,1767925839652,-167.54,0.000192,2]
[401097472,1767925839662,-498.89487953,0.00019205,5]
[401097474,1767925839671,-422.70599137,0.00019273,2]
[401097476,1767925839681,-268.0,0.00019644,3]
[401097478,1767925839690,-151.0,0.000197,2]
[401097479,1767925839700,-151.0,0.000198,2]
[401097480,1767925839710,-2943.499999,0.0002,30]
[401097481,1767925839720,-1104.0,0.0002,2]
[401097482,1767925839730,-1003.0,0.0002,2]
[401097483,1767925839739,-300.00025089,0.0002,7]
[401097484,1767925839748,-8148.93619982,0.0002,2]
[401097485,1767925839758,-77475.54069751,0.0002,2]
[401097486,1767925839768,-300.55962197,0.0002,2]
[401097487,1767925839778,-151.0,0.0002,2]
[401097488,1767925839787,-151.0,0.0002,2]
[401097489,1767925839797,-155.566511,0.0002,2]
[401097490,1767925839806,-151.0,0.000201,4]
[401097491,1767925839816,-1094.074739,0.00020117,2]
[401097493,1767925839825,-151.0,0.00020117,2]
[401097495,1767925839834,-151.0,0.00020117,2]
[401097497,1767925839843,-151.0,0.00020117,2]
[401097499,1767925839853,-151.0,0.00020117,2]
[401097501,1767925839863,-500.0,0.00020117,2]
[401097503,1767925839872,-478.75725327,0.00020117,2]
[401097505,1767925839882,-1500.0,0.00020117,2]
[401097507,1767925839891,-151.0,0.00020117,2]
[401097509,1767925839900,-500.0,0.00020117,2]
[401097511,1767925839909,-1500.0,0.00020117,2]
[401097513,1767925839918,-151.0,0.00020117,2]
[401097515,1767925839927,-250.0,0.00020117,2]
[401097517,1767925839937,-500.0,0.00020117,2]
[401097519,1767925839946,-2030.296672,0.00020117,2]
[401097535,1767925839955,-1500.0,0.00020117,2]
[401097537,1767925840107,-151.0,0.00020117,2]
[401097539,1767925840117,-151.0,0.00020117,2]
[401097542,1767925840126,-500.0,0.00020117,2]
[401097544,1767925840138,-1500.0,0.00020117,2]
[401097546,1767925840147,-151.0,0.00020117,2]
[401097548,1767925840156,-251.51662048,0.00020117,2]
[401097550,1767925840167,-151.27202647,0.00020117,2]
[401097552,1767925840177,-613.39880693,0.00020117,2]
[401097553,1767925840187,-151.0,0.00020117,2]
[401097555,1767925840196,-1500.0,0.00020117,2]
[401097557,1767925840206,-250.0,0.00020117,2]
[401097559,1767925840215,-1500.0,0.00020117,2]
[401097561,1767925840225,-151.0,0.00020117,2]
[401097563,1767925840235,-250.0,0.00020117,2]
[401097565,1767925840244,-1500.0,0.00020117,2]
[401097567,1767925840253,-151.0,0.00020117,2]
[401097569,1767925840262,-250.0,0.00020117,2]
[401097571,1767925840271,-1297.78653774,0.00020117,2]
[401097573,1767925840280,-151.0,0.00020117,2]
[401097575,1767925840289,-250.0,0.00020117,2]
[401097577,1767925840298,-151.0,0.00020117,2]
[401097579,1767925840309,-250.0,0.00020117,2]
[401097581,1767925840318,-151.0,0.00020117,2]
[401097583,1767925840327,-250.0,0.00020117,2]
[401097585,1767925840336,-151.0,0.00020117,2]
[401097586,1767925840346,-250.0,0.00020117,2]
[401097587,1767925840355,-151.0,0.00020117,2]
[401097589,1767925840364,-250.0,0.00020117,2]
[401097591,1767925840373,-151.0,0.00020117,2]
[401097592,1767925840382,-250.0,0.00020117,2]
[401097594,1767925840391,-151.0,0.00020117,2]
[401097595,1767925840400,-250.0,0.00020117,2]
[401097597,1767925840411,-151.0,0.00020117,2]
[401097599,1767925840420,-311.38298493,0.00020117,2]
[401097600,1767925840429,-151.2837254,0.00020117,2]
[401097602,1767925840439,-250.0,0.00020117,2]
[401097604,1767925840448,-151.0,0.00020117,2]
[401097605,1767925840457,-151.0,0.00020117,2]
[401097607,1767925840468,-151.0,0.00020117,2]
[401097609,1767925840477,-250.0,0.00020117,2]
[401097611,1767925840486,-250.0,0.00020117,2]
[401097613,1767925840495,-151.0,0.00020117,2]
[401097614,1767925840506,-250.0,0.00020117,2]
[401097616,1767925840516,-250.0,0.00020117,2]
[401097617,1767925840526,-250.0,0.00020117,2]
[401097619,1767925840535,-151.0,0.00020117,2]
[401097621,1767925840545,-250.0,0.00020117,2]
[401097623,1767925840554,-250.0,0.00020117,2]
[401097624,1767925840563,-151.0,0.00020117,2]
[401097626,1767925840573,-311.1,0.00020117,2]
[401097627,1767925840583,-250.0,0.00020117,2]
[401097629,1767925840592,-250.0,0.00020117,2]
[401097631,1767925840601,-151.0,0.00020117,2]
[401097632,1767925840611,-250.0,0.00020117,2]
[401097634,1767925840620,-250.0,0.00020117,2]
[401097636,1767925840629,-151.0,0.00020117,2]
[401097637,1767925840638,-250.0,0.00020117,2]
[401097639,1767925840647,-250.0,0.00020117,2]
[401097641,1767925840656,-151.0,0.00020117,2]
[401097642,1767925840665,-250.0,0.00020117,2]
[401097644,1767925840673,-250.0,0.00020117,2]
[401097645,1767925840683,-151.0,0.00020117,2]
[401097647,1767925840692,-250.0,0.00020117,2]
[401097648,1767925840702,-250.0,0.00020117,2]
[401097650,1767925840718,-250.0,0.00020117,2]
[401097652,1767925840727,-151.0,0.00020117,2]
[401097653,1767925840736,-250.0,0.00020117,2]
[401097655,1767925840746,-251.4518332,0.00020117,2]
[401097657,1767925840755,-250.0,0.00020117,2]
[401097659,1767925840765,-2312.83697232,0.00020117,2]
[401097660,1767925840775,-151.0,0.00020117,2]
[401097662,1767925840784,-250.0,0.00020117,2]
[401097664,1767925840793,-250.0,0.00020117,2]
[401097665,1767925840802,-151.0,0.00020117,2]
[401097667,1767925840811,-255.89504653,0.00020117,2]
[401097669,1767925840820,-250.0,0.00020117,2]
[401097671,1767925840829,-207.16925945,0.00020117,2]
[401097672,1767925840838,-250.0,0.00020117,2]
[401097674,1767925840848,-250.0,0.00020117,2]
[401097675,1767925840857,-250.0,0.00020117,2]
[401097677,1767925840866,-30000.0,0.00020117,2]
[401097679,1767925840875,-174.61919141,0.00020117,2]
[401097681,1767925840884,-3503.99401595,0.00020138,2]
[401097683,1767925840894,-2105.41764886,0.00020172,2]
[401097684,1767925840903,-2183.31810187,0.00020227,2]
[401097686,1767925840913,-2264.10087164,0.00020282,2]
[401097687,1767925840922,-817.58,0.000203,2]
[401097688,1767925840932,-2347.87260389,0.00020337,2]
[401097689,1767925840941,-2434.74389024,0.00020392,2]
[401097691,1767925840950,-354.23436977,0.00020446,2]
[401097693,1767925840960,-2524.82941417,0.00020447,2]
[401097694,1767925840969,-2618.2481025,0.00020502,2]
[401097696,1767925840978,-2401.41828712,0.00020503,2]
[401097697,1767925840987,-558.36393728,0.00020557,2]
[401097699,1767925840996,-2401.41828712,0.00020572,2]
[401097701,1767925841005,-151.0,0.000206,3]
[401097702,1767925841015,-496.47127164,0.00020665,2]
[401097704,1767925841024,-151.0,0.00020665,2]
[401097706,1767925841033,-2398.4119403,0.00020665,2]
[401097707,1767925841042,-31110.0,0.00020665,2]
[401097709,1767925841051,-156.74880836,0.00020799,5]
[401097711,1767925841060,-151.0,0.000208,4]
[401097712,1767925841070,-350.1,0.00020824,2]
[401097714,1767925841079,-1000.0,0.00020941,2]
[401097716,1767925841088,-492.0,0.00020941,2]
[401097718,1767925841101,-2401.41828712,0.00020985,2]
[401097719,1767925841111,-449.999999,0.00021,2]
[401097721,1767925841120,-24790.43694266,0.00021,2]
[401097723,1767925841129,-151.0,0.00021,3]
[401097724,1767925841139,-514.84070869,0.00021213,2]
[401097726,1767925841148,-151.0,0.00021213,2]
[401097728,1767925841158,-2487.15318209,0.00021213,2]
[401097730,1767925841167,-32261.07,0.00021213,2]
[401097731,1767925841177,-2401.41828712,0.0002126,2]
[401097733,1767925841187,-472.11318517,0.00021273,2]
[401097735,1767925841196,-151.0,0.00021334,2]
[401097736,1767925841206,-151.0,0.00021334,2]
[401097738,1767925841216,-19349.51,0.000214,2]
[401097740,1767925841225,-2401.41828712,0.00021431,2]
[401097742,1767925841234,-322.6107,0.00021486,2]
[401097743,1767925841243,-181.76225645,0.00021486,2]
[401097745,1767925841252,-1039.20549226,0.000215,2]
[401097747,1767925841261,-12854.43519592,0.000215,2]
[401097748,1767925841270,-812.7822298,0.00021544,2]
[401097750,1767925841279,-1416.93747906,0.00021636,2]
[401097752,1767925841288,-817.58,0.000217,2]
[401097754,1767925841297,-533.88981491,0.00021761,2]
[401097755,1767925841306,-151.0,0.00021761,2]
[401097757,1767925841316,-2579.17784983,0.00021761,2]
[401097759,1767925841325,-33454.72959,0.00021761,2]
[401097761,1767925841334,-2401.41828712,0.00021786,2]
[401097762,1767925841344,-151.0,0.000218,4]
[401097764,1767925841353,-500.0,0.0002187,2]
[401097766,1767925841362,-151.0,0.00021882,2]
[401097768,1767925841371,-419.868976,0.00021882,2]
[401097769,1767925841380,-419.868976,0.00021882,2]
[401097771,1767925841389,-419.868976,0.00021882,2]
[401097773,1767925841399,-419.868976,0.00021882,2]
[401097775,1767925841409,-151.0,0.00021918,2]
[401097776,1767925841418,-151.0,0.00021918,2]
[401097778,1767925841427,-151.0,0.00021918,2]
[401097780,1767925841436,-151.0,0.00021918,2]
[401097782,1767925841445,-151.0,0.00021918,2]
[401097783,1767925841454,-151.0,0.00021918,2]
[401097785,1767925841464,-151.0,0.00021918,2]
[401097787,1767925841472,-151.0,0.00021918,2]
[401097789,1767925841481,-163.657676,0.00021918,2]
[401097790,1767925841491,-154.600483,0.00021918,2]
[401097792,1767925841500,-163.657676,0.00021918,2]
[401097794,1767925841509,-163.657676,0.00021918,2]
[401097796,1767925841520,-163.657676,0.00021918,2]
[401097798,1767925841530,-1914.381293,0.00021918,2]
[401097799,1767925841539,-1914.381293,0.00021918,2]
[401097801,1767925841548,-151.0,0.00021918,2]
[401097803,1767925841557,-1914.381293,0.00021918,2]
[401097805,1767925841566,-151.0,0.00021918,2]
[401097806,1767925841577,-1914.381293,0.00021918,2]
[401097808,1767925841587,-151.0,0.00021918,2]
[401097810,1767925841597,-151.0,0.00021918,2]
[401097812,1767925841607,-1369.689816,0.00021918,2]
[401097814,1767925841616,-151.0,0.00021918,2]
[401097815,1767925841625,-244.441363,0.00021918,2]
[401097817,1767925841634,-152.533072,0.00021918,2]
[401097819,1767925841644,-606.371409,0.00021918,2]
[401097821,1767925841653,-606.371409,0.00021918,2]
[401097822,1767925841662,-606.371409,0.00021918,2]
[401097824,1767925841671,-606.371409,0.00021918,2]
[401097826,1767925841681,-298.26848,0.00021918,2]
[401097828,1767925841691,-298.26848,0.00021918,2]
[401097829,1767925841700,-298.26848,0.00021918,2]
[401097831,1767925841710,-298.26848,0.00021918,2]
[401097833,1767925841719,-151.0,0.00021918,2]
[401097834,1767925841728,-171.726927,0.00021918,2]
[401097836,1767925841737,-151.0,0.00021918,2]
[401097838,1767925841748,-151.0,0.00021918,2]
[401097840,1767925841757,-151.0,0.00021918,2]
[401097842,1767925841767,-151.0,0.00021918,2]
[401097843,1767925841776,-151.0,0.00021918,2]
[401097845,1767925841785,-151.0,0.00021918,2]
[401097847,1767925841794,-151.0,0.00021918,2]
[401097848,1767925841803,-151.0,0.00021918,2]
[401097850,1767925841812,-151.0,0.00021918,2]
[401097852,1767925841821,-151.500212,0.00021918,2]
[401097854,1767925841830,-151.0,0.00021918,2]
[401097855,1767925841839,-152.033783,0.00021918,2]
[401097857,1767925841848,-151.954666,0.00021918,2]
[401097859,1767925841857,-498.400382,0.00021918,2]
[401097861,1767925841866,-498.400382,0.00021918,2]
[401097862,1767925841875,-498.400382,0.00021918,2]
[401097864,1767925841884,-498.400382,0.00021918,2]
[401097866,1767925841894,-498.400382,0.00021918,2]
[401097868,1767925841903,-498.400382,0.00021918,2]
[401097870,1767925841912,-498.400382,0.00021918,2]
[401097871,1767925841921,-498.400382,0.00021918,2]
[401097873,1767925841930,-151.0,0.00021918,2]
[401097875,1767925841939,-151.0,0.00021918,2]
[401097877,1767925841948,-151.0,0.00021918,2]
[401097878,1767925841957,-151.0,0.00021918,2]
[401097880,1767925841966,-151.0,0.00021918,2]
[401097882,1767925841975,-151.0,0.00021918,2]
[401097884,1767925841984,-151.0,0.00021918,2]
[401097885,1767925841993,-151.0,0.00021918,2]
[401097887,1767925842002,-151.0,0.00021918,2]
[401097889,1767925842013,-191.201812,0.00021918,2]
[401097891,1767925842022,-159.186934,0.00021918,2]
[401097893,1767925842031,-151.0,0.00021918,2]
[401097894,1767925842040,-151.0,0.00021918,2]
[401097896,1767925842049,-151.0,0.00021918,2]
[401097898,1767925842058,-151.0,0.00021918,2]
[401097900,1767925842066,-151.0,0.00021918,2]
[401097901,1767925842075,-151.0,0.00021918,2]
[401097903,1767925842084,-151.0,0.00021918,2]
[401097905,1767925842093,-151.0,0.00021918,2]
[401097907,1767925842105,-151.174564,0.00021918,2]
[401097908,1767925842114,-151.0,0.00021918,2]
[401097910,1767925842123,-151.0,0.00021918,2]
[401097912,1767925842132,-169.632255,0.00021918,2]
[401097914,1767925842142,-151.0,0.00021918,2]
[401097915,1767925842150,-151.0,0.00021918,2]
[401097917,1767925842159,-155.260536,0.00021918,2]
[401097919,1767925842169,-151.0,0.00021918,2]
[401097921,1767925842179,-151.0,0.00021918,2]
[401097922,1767925842188,-151.0,0.00021918,2]
[401097924,1767925842196,-151.0,0.00021918,2]
[401097926,1767925842206,-184.675382,0.00021918,2]
[401097928,1767925842215,-239.59277,0.00021918,2]
[401097930,1767925842223,-2401.41828712,0.00021931,2]
[401097931,1767925842233,-350.1,0.00021951,2]
[401097933,1767925842242,-3503.99401595,0.00021954,2]
[401097935,1767925842251,-519.17,0.00022,7]
[401097937,1767925842260,-32105.108133,0.00022,20]